[Event "GrandPrix_29.05"]
[Site "Chess.com"]
[Date "2020.05.29"]
[Round "7"]
[White "gummigisla"]
[Black "HElissalt"]
[Result "0-1"]
[WhiteElo "1997"]
[BlackElo "1920"]
[TimeControl "600+2"]
[EndTime "12:28:18 PDT"]
[Termination "HElissalt won by resignation"]

1. d4 {[%clk 0:10:01.9]} 1... f5 {[%clk 0:09:57.7]} 2. h4 {[%clk 0:09:59.6]}
2... Nf6 {[%clk 0:09:55.4]} 3. Qd3 {[%clk 0:09:59.8]} 3... e6 {[%clk 0:09:56.3]}
4. Bg5 {[%clk 0:09:58.2]} 4... d5 {[%clk 0:09:56.5]} 5. Nh3 {[%clk 0:09:58.1]}
5... Be7 {[%clk 0:09:55.7]} 6. Bxf6 {[%clk 0:09:58.2]} 6... Bxf6 {[%clk
0:09:55.8]} 7. Nf4 {[%clk 0:09:55.6]} 7... Qe7 {[%clk 0:09:24.6]} 8. c3 {[%clk
0:09:53.1]} 8... c6 {[%clk 0:08:55.6]} 9. Nh5 {[%clk 0:09:52.4]} 9... Nd7 {[%clk
0:08:50.7]} 10. e3 {[%clk 0:09:47.6]} 10... O-O {[%clk 0:08:46.8]} 11. g3 {[%clk
0:09:40.2]} 11... e5 {[%clk 0:08:11]} 12. Nd2 {[%clk 0:09:27.9]} 12... b5 {[%clk
0:06:47.3]} 13. Bh3 {[%clk 0:09:14.9]} 13... e4 {[%clk 0:06:43.5]} 14. Qc2
{[%clk 0:09:09.6]} 14... Nb6 {[%clk 0:06:43.6]} 15. O-O-O {[%clk 0:08:56.5]}
15... a5 {[%clk 0:06:44.1]} 16. Kb1 {[%clk 0:08:53.4]} 16... Kh8 {[%clk
0:06:37.3]} 17. Nf4 {[%clk 0:08:22]} 17... Bd7 {[%clk 0:06:29.3]} 18. Nb3 {[%clk
0:08:19.9]} 18... Na4 {[%clk 0:06:21.3]} 19. Nc1 {[%clk 0:07:42.4]} 19... Qd6
{[%clk 0:06:16.6]} 20. b3 {[%clk 0:07:40.3]} 20... Nb6 {[%clk 0:06:17.2]} 21.
Bf1 {[%clk 0:07:28.3]} 21... Rfb8 {[%clk 0:06:11]} 22. Be2 {[%clk 0:07:21.9]}
22... Be7 {[%clk 0:06:04.8]} 23. Rd2 {[%clk 0:07:10]} 23... Qc7 {[%clk
0:05:04.3]} 24. Ka1 {[%clk 0:07:03.3]} 24... Qb7 {[%clk 0:04:55.4]} 25. f3
{[%clk 0:06:39]} 25... c5 {[%clk 0:04:44.6]} 26. fxe4 {[%clk 0:06:35.8]} 26...
fxe4 {[%clk 0:04:45.3]} 27. h5 {[%clk 0:06:09.7]} 27... cxd4 {[%clk 0:04:45.3]}
28. cxd4 {[%clk 0:06:07.2]} 28... Bb4 {[%clk 0:04:40.2]} 29. Kb1 {[%clk
0:05:45.4]} 29... Rc8 {[%clk 0:04:35]} 30. Qd1 {[%clk 0:05:45.1]} 30... Na4
{[%clk 0:04:26.3]} 31. bxa4 {[%clk 0:05:38.8]} 31... Bxd2 {[%clk 0:03:58.2]} 32.
Qxd2 {[%clk 0:05:38.4]} 32... bxa4+ {[%clk 0:03:59.1]} 33. Qb2 {[%clk
0:05:13.6]} 33... Qc7 {[%clk 0:03:47.6]} 34. Nxd5 {[%clk 0:05:09.5]} 34... Qd6
{[%clk 0:03:38.4]} 35. Nb6 {[%clk 0:04:53.3]} 35... Rab8 {[%clk 0:03:26.5]} 36.
Nxc8 {[%clk 0:04:48.2]} 36... Rxb2+ {[%clk 0:03:26.5]} 37. Kxb2 {[%clk
0:04:49.1]} 37... Bxc8 {[%clk 0:03:08.4]} 38. a3 {[%clk 0:04:41.3]} 38... Be6
{[%clk 0:03:06.6]} 39. Rf1 {[%clk 0:04:28.4]} 39... h6 {[%clk 0:02:21.2]} 40.
Rf4 {[%clk 0:04:25.2]} 40... Qb6+ {[%clk 0:02:17]} 41. Kc2 {[%clk 0:04:25.1]}
41... Bb3+ {[%clk 0:02:14.9]} 42. Kd2 {[%clk 0:04:25.1]} 42... Qc6 {[%clk
0:02:12.8]} 43. Bd1 {[%clk 0:04:22.3]} 43... Bxd1 {[%clk 0:02:10.3]} 44. Kxd1
{[%clk 0:04:21.8]} 44... Qc3 {[%clk 0:02:03.8]} 45. Rxe4 {[%clk 0:04:19]} 45...
Qxa3 {[%clk 0:02:04.8]} 46. d5 {[%clk 0:04:18.3]} 46... Qd6 {[%clk 0:01:51.9]}
47. Rxa4 {[%clk 0:04:16.6]} 47... Qxd5+ {[%clk 0:01:53]} 48. Rd4 {[%clk
0:04:17.6]} 48... Qf3+ {[%clk 0:01:49.4]} 49. Kd2 {[%clk 0:04:16.8]} 49... Qxh5
{[%clk 0:01:50.5]} 50. Ne2 {[%clk 0:04:16.4]} 50... Qb5 {[%clk 0:01:48.9]} 51.
Nf4 {[%clk 0:04:15.1]} 51... a4 {[%clk 0:01:46.1]} 52. Ne6 {[%clk 0:04:05.3]}
52... Qb2+ {[%clk 0:01:42.5]} 53. Ke1 {[%clk 0:04:02]} 53... Qb1+ {[%clk
0:01:37.8]} 54. Rd1 {[%clk 0:03:58.6]} 54... Qb4+ {[%clk 0:01:29.6]} 0-1

[Event "GrandPrix_29.05"]
[Site "Chess.com"]
[Date "2020.05.29"]
[Round "7"]
[White "GM_RobertoMogranzini"]
[Black "Paulz64"]
[Result "1-0"]
[WhiteElo "2166"]
[BlackElo "2144"]
[TimeControl "600+2"]
[EndTime "12:28:22 PDT"]
[Termination "GM_RobertoMogranzini won by resignation"]

1. c4 {[%clk 0:10:01.9]} 1... Nf6 {[%clk 0:09:59.6]} 2. g3 {[%clk 0:10:02.7]}
2... e6 {[%clk 0:09:59]} 3. Bg2 {[%clk 0:10:03.5]} 3... d5 {[%clk 0:10:00.1]} 4.
Nf3 {[%clk 0:10:05]} 4... dxc4 {[%clk 0:09:59.8]} 5. Qa4+ {[%clk 0:10:04.9]}
5... Nbd7 {[%clk 0:09:56.1]} 6. Qxc4 {[%clk 0:10:05.9]} 6... a6 {[%clk
0:09:57.3]} 7. a4 {[%clk 0:10:06.5]} 7... c5 {[%clk 0:09:51.2]} 8. O-O {[%clk
0:10:03.1]} 8... b6 {[%clk 0:09:37.1]} 9. d3 {[%clk 0:09:35.9]} 9... Bb7 {[%clk
0:09:34.4]} 10. e4 {[%clk 0:09:21.3]} 10... Be7 {[%clk 0:09:25.1]} 11. Qb3
{[%clk 0:09:17.8]} 11... O-O {[%clk 0:09:17.6]} 12. Na3 {[%clk 0:09:19]} 12...
Bc6 {[%clk 0:07:05.6]} 13. Nc4 {[%clk 0:09:15.9]} 13... b5 {[%clk 0:06:50.4]}
14. Nce5 {[%clk 0:08:02.1]} 14... Nxe5 {[%clk 0:06:06.4]} 15. Nxe5 {[%clk
0:08:04]} 15... bxa4 {[%clk 0:05:49.1]} 16. Qc2 {[%clk 0:07:03.9]} 16... Bb5
{[%clk 0:05:42.4]} 17. Be3 {[%clk 0:06:57.2]} 17... Rc8 {[%clk 0:05:32.7]} 18.
Nc4 {[%clk 0:06:50.1]} 18... Nd7 {[%clk 0:03:56.6]} 19. f4 {[%clk 0:06:42.8]}
19... Nb6 {[%clk 0:03:47.2]} 20. Rad1 {[%clk 0:06:27.6]} 20... Qc7 {[%clk
0:03:02.5]} 21. h4 {[%clk 0:06:10]} 21... Nxc4 {[%clk 0:02:38.4]} 22. dxc4
{[%clk 0:06:09.8]} 22... Bc6 {[%clk 0:02:39.9]} 23. Kh2 {[%clk 0:06:01.8]} 23...
Rfd8 {[%clk 0:02:39]} 24. Bh3 {[%clk 0:05:43.7]} 24... Rxd1 {[%clk 0:02:36.4]}
25. Rxd1 {[%clk 0:05:44.1]} 25... Rd8 {[%clk 0:02:36.7]} 26. Re1 {[%clk
0:05:37.6]} 26... Qb7 {[%clk 0:02:30.6]} 27. Bf2 {[%clk 0:05:21.8]} 27... Qb3
{[%clk 0:02:25.3]} 28. Qe2 {[%clk 0:05:09.5]} 28... Qd3 {[%clk 0:02:13.8]} 29.
f5 {[%clk 0:04:55]} 29... Qxe2 {[%clk 0:01:33]} 30. Rxe2 {[%clk 0:04:56.1]}
30... e5 {[%clk 0:01:27.9]} 31. Bf1 {[%clk 0:04:35.4]} 31... Rd1 {[%clk
0:01:11.9]} 32. Kg2 {[%clk 0:04:33.5]} 32... Kf8 {[%clk 0:01:07.3]} 33. Be1
{[%clk 0:04:26.6]} 33... Rd4 {[%clk 0:01:01.6]} 34. Kf3 {[%clk 0:04:19.2]} 34...
Rxc4 {[%clk 0:01:00]} 35. Bc3 {[%clk 0:04:20.4]} 35... a3 {[%clk 0:01:00.5]} 36.
Re1 {[%clk 0:04:16.9]} 36... Rxe4 {[%clk 0:00:41.8]} 37. Rxe4 {[%clk 0:04:16.6]}
37... c4 {[%clk 0:00:41.8]} 38. Bxc4 {[%clk 0:04:14.1]} 38... axb2 {[%clk
0:00:41.3]} 39. Bxb2 {[%clk 0:04:14.4]} 39... f6 {[%clk 0:00:42.3]} 40. Bxa6
{[%clk 0:04:11.2]} 40... Bc5 {[%clk 0:00:43.4]} 41. Bd3 {[%clk 0:04:10.9]} 41...
Ke7 {[%clk 0:00:44.3]} 42. Ke2 {[%clk 0:04:10.3]} 42... Bxe4 {[%clk 0:00:45.3]}
43. Bxe4 {[%clk 0:04:12.2]} 43... Kd6 {[%clk 0:00:46.6]} 44. Bc1 {[%clk
0:04:12]} 44... h6 {[%clk 0:00:47.2]} 45. Be3 {[%clk 0:04:13]} 45... Bb4 {[%clk
0:00:48.4]} 46. Kf3 {[%clk 0:04:13.9]} 46... Ba3 {[%clk 0:00:48.5]} 47. Bf2
{[%clk 0:04:15.1]} 47... Ke7 {[%clk 0:00:48.3]} 48. Kg4 {[%clk 0:04:16.5]} 48...
Bc1 {[%clk 0:00:47.6]} 49. Kh5 {[%clk 0:04:17.5]} 49... Kf7 {[%clk 0:00:48.5]}
50. Bd5+ {[%clk 0:04:18.5]} 1-0

[Event "GrandPrix_29.05"]
[Site "Chess.com"]
[Date "2020.05.29"]
[Round "7"]
[White "VerdeNotte"]
[Black "Micki-taryan"]
[Result "1-0"]
[WhiteElo "2706"]
[BlackElo "2506"]
[TimeControl "600+2"]
[EndTime "12:28:36 PDT"]
[Termination "VerdeNotte won by resignation"]

1. e4 {[%clk 0:10:01.9]} 1... c5 {[%clk 0:09:59.4]} 2. Nc3 {[%clk 0:10:02]} 2...
Nc6 {[%clk 0:09:54.8]} 3. Bb5 {[%clk 0:10:02.4]} 3... Nf6 {[%clk 0:09:49]} 4.
Nf3 {[%clk 0:10:00.1]} 4... Qc7 {[%clk 0:09:34.5]} 5. O-O {[%clk 0:09:58.2]}
5... Nd4 {[%clk 0:09:09.2]} 6. Re1 {[%clk 0:09:56.3]} 6... Ng4 {[%clk
0:08:56.5]} 7. e5 {[%clk 0:09:54.6]} 7... Nxf3+ {[%clk 0:07:33.5]} 8. Qxf3
{[%clk 0:09:56.5]} 8... Nxe5 {[%clk 0:07:34.9]} 9. Qg3 {[%clk 0:09:55.2]} 9...
f6 {[%clk 0:07:36.4]} 10. b4 {[%clk 0:08:36.5]} 10... cxb4 {[%clk 0:06:49.1]}
11. Nd5 {[%clk 0:08:30]} 11... Qc5 {[%clk 0:06:20.4]} 12. Rxe5 {[%clk
0:08:12.9]} 12... fxe5 {[%clk 0:06:22.3]} 13. Qxe5 {[%clk 0:08:12]} 13... e6
{[%clk 0:04:49]} 14. Qxe6+ {[%clk 0:07:43.1]} 14... Be7 {[%clk 0:04:50.1]} 15.
Bb2 {[%clk 0:06:39.3]} 15... Rf8 {[%clk 0:04:05.2]} 16. Bxg7 {[%clk 0:05:07.9]}
16... Qxf2+ {[%clk 0:02:56.5]} 17. Kh1 {[%clk 0:05:07.8]} 17... Qf1+ {[%clk
0:00:30]} 18. Bxf1 {[%clk 0:04:58.5]} 18... dxe6 {[%clk 0:00:30.8]} 19. Nc7+
{[%clk 0:04:56.1]} 19... Kd7 {[%clk 0:00:13.9]} 20. Bxf8 {[%clk 0:04:43.3]}
20... Bf6 {[%clk 0:00:11.9]} 21. Nxa8 {[%clk 0:04:35.4]} 21... Bxa1 {[%clk
0:00:13.4]} 22. Bxb4 {[%clk 0:04:22.1]} 22... b6 {[%clk 0:00:07.2]} 23. Bb5+
{[%clk 0:04:20.6]} 23... Kd8 {[%clk 0:00:08.8]} 24. Bc6 {[%clk 0:04:15]} 24...
Bd7 {[%clk 0:00:10.2]} 25. Bxd7 {[%clk 0:03:46.7]} 25... Kxd7 {[%clk 0:00:12.1]}
26. Bc3 {[%clk 0:03:45.3]} 26... Bxc3 {[%clk 0:00:11.6]} 27. dxc3 {[%clk
0:03:46.6]} 27... b5 {[%clk 0:00:13.5]} 28. g4 {[%clk 0:03:41.2]} 28... Kc6
{[%clk 0:00:15.1]} 29. h4 {[%clk 0:03:16.1]} 29... Kb7 {[%clk 0:00:15.9]} 30. g5
{[%clk 0:03:15.2]} 1-0

[Event "GrandPrix_29.05"]
[Site "Chess.com"]
[Date "2020.05.29"]
[Round "7"]
[White "farhadtahirov"]
[Black "Doukis"]
[Result "0-1"]
[WhiteElo "1895"]
[BlackElo "2112"]
[TimeControl "600+2"]
[EndTime "12:28:40 PDT"]
[Termination "Doukis won by checkmate"]

1. c4 {[%clk 0:09:55.2]} 1... f5 {[%clk 0:09:59.5]} 2. Nc3 {[%clk 0:09:55]} 2...
Nf6 {[%clk 0:10:00.5]} 3. d3 {[%clk 0:09:54.9]} 3... d6 {[%clk 0:09:59.4]} 4. e4
{[%clk 0:09:56.1]} 4... e5 {[%clk 0:10:00.3]} 5. Bg5 {[%clk 0:09:51.1]} 5... Be7
{[%clk 0:09:57.1]} 6. Be2 {[%clk 0:09:48.3]} 6... O-O {[%clk 0:09:56.7]} 7. Nf3
{[%clk 0:08:52.5]} 7... c6 {[%clk 0:09:42.5]} 8. c5 {[%clk 0:08:13.8]} 8... Na6
{[%clk 0:08:59.9]} 9. cxd6 {[%clk 0:07:03.6]} 9... Qxd6 {[%clk 0:08:51]} 10. d4
{[%clk 0:05:33.3]} 10... Nxe4 {[%clk 0:08:14.9]} 11. Bxe7 {[%clk 0:03:17.2]}
11... Qxe7 {[%clk 0:08:10.9]} 12. Nxe5 {[%clk 0:03:03.3]} 12... Nc7 {[%clk
0:04:17.1]} 13. O-O {[%clk 0:02:04.1]} 13... Be6 {[%clk 0:04:16.7]} 14. Qc2
{[%clk 0:02:02.9]} 14... Bd5 {[%clk 0:03:59]} 15. Bf3 {[%clk 0:01:38.1]} 15...
Nxc3 {[%clk 0:03:11.2]} 16. bxc3 {[%clk 0:01:37.7]} 16... Bxf3 {[%clk
0:03:11.6]} 17. Nxf3 {[%clk 0:01:38.4]} 17... Qe4 {[%clk 0:03:12]} 18. Qb3+
{[%clk 0:01:37.8]} 18... Nd5 {[%clk 0:03:06]} 19. Rae1 {[%clk 0:00:53.1]} 19...
Qg4 {[%clk 0:02:58.3]} 20. h3 {[%clk 0:00:44.4]} 20... Qg6 {[%clk 0:02:51.7]}
21. Ne5 {[%clk 0:00:43.8]} 21... Qg5 {[%clk 0:02:48.4]} 22. Qxb7 {[%clk
0:00:42.9]} 22... Nf4 {[%clk 0:02:40.6]} 23. Qxc6 {[%clk 0:00:41.2]} 23... Nxh3+
{[%clk 0:02:41]} 24. Kh2 {[%clk 0:00:42.6]} 24... Nf4 {[%clk 0:02:38.3]} 25. Re3
{[%clk 0:00:31.6]} 25... Rac8 {[%clk 0:02:36]} 26. Qb5 {[%clk 0:00:28.5]} 26...
Qxg2# {[%clk 0:02:35.4]} 0-1

[Event "GrandPrix_29.05"]
[Site "Chess.com"]
[Date "2020.05.29"]
[Round "7"]
[White "nikosgal"]
[Black "lilleper1"]
[Result "0-1"]
[WhiteElo "2455"]
[BlackElo "2431"]
[TimeControl "600+2"]
[EndTime "12:28:45 PDT"]
[Termination "lilleper1 won by resignation"]

1. d4 {[%clk 0:10:01.6]} 1... Nf6 {[%clk 0:10:00.2]} 2. c4 {[%clk 0:10:02.3]}
2... e6 {[%clk 0:10:01]} 3. g3 {[%clk 0:10:03.2]} 3... d5 {[%clk 0:09:58.3]} 4.
Bg2 {[%clk 0:10:03.5]} 4... dxc4 {[%clk 0:09:57.6]} 5. Nf3 {[%clk 0:10:04.1]}
5... Bb4+ {[%clk 0:09:56.9]} 6. Nc3 {[%clk 0:09:49]} 6... O-O {[%clk 0:09:52.5]}
7. O-O {[%clk 0:09:44.2]} 7... Nc6 {[%clk 0:09:41.4]} 8. Bg5 {[%clk 0:09:38.6]}
8... h6 {[%clk 0:09:35.3]} 9. Bxf6 {[%clk 0:09:39.4]} 9... Qxf6 {[%clk
0:09:36.1]} 10. e3 {[%clk 0:09:41]} 10... Rb8 {[%clk 0:09:24]} 11. Nd2 {[%clk
0:09:38.5]} 11... Na5 {[%clk 0:08:53.5]} 12. Qa4 {[%clk 0:09:28.1]} 12... Qe7
{[%clk 0:08:46.2]} 13. a3 {[%clk 0:09:28]} 13... Bxc3 {[%clk 0:08:38.1]} 14.
bxc3 {[%clk 0:09:29.1]} 14... b6 {[%clk 0:08:37.2]} 15. Qb4 {[%clk 0:09:18.8]}
15... c5 {[%clk 0:08:00.6]} 16. dxc5 {[%clk 0:08:42.5]} 16... Qxc5 {[%clk
0:08:00.6]} 17. Rab1 {[%clk 0:08:23.2]} 17... Qc7 {[%clk 0:07:48.5]} 18. Rfd1
{[%clk 0:08:07.8]} 18... Rd8 {[%clk 0:07:39.3]} 19. Nf3 {[%clk 0:06:33.4]} 19...
Bb7 {[%clk 0:07:16]} 20. Nd4 {[%clk 0:06:33.4]} 20... Bxg2 {[%clk 0:07:13.7]}
21. Kxg2 {[%clk 0:06:35.3]} 21... Qb7+ {[%clk 0:07:10.6]} 22. Kg1 {[%clk
0:06:34.6]} 22... Qe4 {[%clk 0:07:04.2]} 23. Qe7 {[%clk 0:06:30]} 23... Qb7
{[%clk 0:06:19.1]} 24. Qh4 {[%clk 0:06:30.3]} 24... Rd7 {[%clk 0:06:04.2]} 25.
Nb5 {[%clk 0:06:22.1]} 25... a6 {[%clk 0:05:16.7]} 26. Nd6 {[%clk 0:06:21.2]}
26... Qc6 {[%clk 0:05:04.7]} 27. Ne4 {[%clk 0:06:21.9]} 27... f5 {[%clk
0:04:35.6]} 28. Nf6+ {[%clk 0:05:54.5]} 28... gxf6 {[%clk 0:04:27]} 29. Qxf6
{[%clk 0:05:56.4]} 29... Kh7 {[%clk 0:03:58.6]} 30. Rd4 {[%clk 0:05:55]} 30...
Rbd8 {[%clk 0:03:11.2]} 31. Rbd1 {[%clk 0:05:19.1]} 31... Nb3 {[%clk 0:02:37.7]}
32. Re1 {[%clk 0:03:12.9]} 32... Nxd4 {[%clk 0:02:27]} 33. exd4 {[%clk
0:03:14.8]} 33... Re8 {[%clk 0:02:06.9]} 34. h4 {[%clk 0:02:45.5]} 34... Qd6
{[%clk 0:01:40.5]} 35. h5 {[%clk 0:02:43.5]} 35... Rg7 {[%clk 0:01:37.5]} 36. d5
{[%clk 0:02:27.5]} 36... Qxd5 {[%clk 0:01:19.3]} 0-1

[Event "GrandPrix_29.05"]
[Site "Chess.com"]
[Date "2020.05.29"]
[Round "7"]
[White "Azatic"]
[Black "SantoBlue"]
[Result "0-1"]
[WhiteElo "2449"]
[BlackElo "2484"]
[TimeControl "600+2"]
[EndTime "12:28:47 PDT"]
[Termination "SantoBlue won by checkmate"]

1. e4 {[%clk 0:10:01.9]} 1... e5 {[%clk 0:09:56.1]} 2. Nf3 {[%clk 0:10:02.8]}
2... Nc6 {[%clk 0:09:55.5]} 3. Bb5 {[%clk 0:10:03.5]} 3... a6 {[%clk 0:09:52.4]}
4. Ba4 {[%clk 0:10:03.9]} 4... Nf6 {[%clk 0:09:51]} 5. O-O {[%clk 0:10:03.7]}
5... Nxe4 {[%clk 0:09:43.8]} 6. d4 {[%clk 0:10:01]} 6... b5 {[%clk 0:09:41.6]}
7. Bb3 {[%clk 0:10:01.8]} 7... d5 {[%clk 0:09:39.3]} 8. dxe5 {[%clk 0:10:01.8]}
8... Be6 {[%clk 0:09:34.2]} 9. c3 {[%clk 0:09:42.8]} 9... Be7 {[%clk 0:09:17.5]}
10. Nbd2 {[%clk 0:09:40.1]} 10... O-O {[%clk 0:09:13.8]} 11. Bc2 {[%clk
0:09:40.3]} 11... f5 {[%clk 0:09:13.3]} 12. Nb3 {[%clk 0:09:36.2]} 12... Qd7
{[%clk 0:09:11.8]} 13. Nbd4 {[%clk 0:09:32.6]} 13... Nd8 {[%clk 0:09:07.9]} 14.
Nxe6 {[%clk 0:09:23]} 14... Nxe6 {[%clk 0:08:56.2]} 15. Nd4 {[%clk 0:09:20.1]}
15... Nxd4 {[%clk 0:08:42.4]} 16. cxd4 {[%clk 0:09:22]} 16... c5 {[%clk
0:08:40.5]} 17. f3 {[%clk 0:09:02.7]} 17... cxd4 {[%clk 0:08:41]} 18. fxe4
{[%clk 0:08:20.6]} 18... fxe4 {[%clk 0:08:40.3]} 19. Bf4 {[%clk 0:08:10.9]}
19... d3 {[%clk 0:07:47]} 20. Bxd3 {[%clk 0:07:51.5]} 20... exd3 {[%clk
0:07:41]} 21. Qxd3 {[%clk 0:07:53.4]} 21... Qe6 {[%clk 0:07:37.6]} 22. Rad1
{[%clk 0:07:50.2]} 22... Rad8 {[%clk 0:07:26.9]} 23. h3 {[%clk 0:07:32.6]} 23...
Bc5+ {[%clk 0:07:21.7]} 24. Kh1 {[%clk 0:07:18.4]} 24... h6 {[%clk 0:06:58.6]}
25. Bg3 {[%clk 0:07:09.7]} 25... Rxf1+ {[%clk 0:06:53.8]} 26. Rxf1 {[%clk
0:07:11.6]} 26... d4 {[%clk 0:06:49.7]} 27. b3 {[%clk 0:06:59.1]} 27... Be7
{[%clk 0:06:41.2]} 28. Rf4 {[%clk 0:06:06.5]} 28... Bc5 {[%clk 0:05:58.4]} 29.
Rg4 {[%clk 0:05:37.7]} 29... Rf8 {[%clk 0:05:51.7]} 30. b4 {[%clk 0:03:54.3]}
30... Bb6 {[%clk 0:05:40.3]} 31. Rg6 {[%clk 0:03:10.4]} 31... Qc4 {[%clk
0:05:36.8]} 32. Qd2 {[%clk 0:02:15.3]} 32... d3 {[%clk 0:05:37]} 33. Rxb6 {[%clk
0:01:25.1]} 33... Qd4 {[%clk 0:05:36]} 34. Rf6 {[%clk 0:01:12.3]} 34... gxf6
{[%clk 0:05:29]} 35. Qxh6 {[%clk 0:01:12.4]} 35... Rf7 {[%clk 0:05:16.6]} 36.
Qg6+ {[%clk 0:00:45.5]} 36... Kf8 {[%clk 0:05:11.9]} 37. Qh6+ {[%clk 0:00:40.3]}
37... Ke7 {[%clk 0:04:54.3]} 38. exf6+ {[%clk 0:00:40.6]} 38... Kd7 {[%clk
0:04:54.7]} 39. Qh5 {[%clk 0:00:31.1]} 39... Rxf6 {[%clk 0:04:48.6]} 40. Qh7+
{[%clk 0:00:30.9]} 40... Kc6 {[%clk 0:04:13.3]} 41. Qg8 {[%clk 0:00:07.6]} 41...
Rf1+ {[%clk 0:04:11.9]} 42. Kh2 {[%clk 0:00:08.9]} 42... Qg1# {[%clk 0:04:13.8]}
0-1

[Event "GrandPrix_29.05"]
[Site "Chess.com"]
[Date "2020.05.29"]
[Round "7"]
[White "LiamVrolijk"]
[Black "grzechu96"]
[Result "1-0"]
[WhiteElo "2481"]
[BlackElo "2488"]
[TimeControl "600+2"]
[EndTime "12:28:47 PDT"]
[Termination "LiamVrolijk won by resignation"]

1. c4 {[%clk 0:10:01.9]} 1... e5 {[%clk 0:09:50.1]} 2. g3 {[%clk 0:10:02.5]}
2... Nf6 {[%clk 0:09:51.2]} 3. Bg2 {[%clk 0:10:03.4]} 3... d5 {[%clk 0:09:52.9]}
4. cxd5 {[%clk 0:10:05.3]} 4... Nxd5 {[%clk 0:09:54.8]} 5. Nf3 {[%clk
0:10:06.1]} 5... Nc6 {[%clk 0:09:55.5]} 6. O-O {[%clk 0:10:07.1]} 6... Nb6
{[%clk 0:09:56.1]} 7. b3 {[%clk 0:10:06.1]} 7... Be7 {[%clk 0:09:24]} 8. Bb2
{[%clk 0:10:05]} 8... f6 {[%clk 0:09:03.7]} 9. Nc3 {[%clk 0:09:48.5]} 9... O-O
{[%clk 0:09:02.6]} 10. Rc1 {[%clk 0:09:24.8]} 10... Be6 {[%clk 0:08:52.1]} 11.
d4 {[%clk 0:08:51.9]} 11... Nxd4 {[%clk 0:07:50.6]} 12. Nxd4 {[%clk 0:08:49.5]}
12... exd4 {[%clk 0:07:51.9]} 13. Ne4 {[%clk 0:08:35.2]} 13... d3 {[%clk
0:07:28.8]} 14. e3 {[%clk 0:07:26.9]} 14... Bf5 {[%clk 0:02:37]} 15. Rc3 {[%clk
0:06:35.1]} 15... Qe8 {[%clk 0:01:29.9]} 16. Rxc7 {[%clk 0:03:36.4]} 16... Bd8
{[%clk 0:01:18.2]} 17. Nd6 {[%clk 0:03:30.9]} 17... Qe6 {[%clk 0:01:18.3]} 18.
Nxf5 {[%clk 0:02:43.6]} 18... Bxc7 {[%clk 0:01:15.9]} 19. Qg4 {[%clk 0:02:21.4]}
19... Qd7 {[%clk 0:01:04.3]} 20. Bd5+ {[%clk 0:02:22.2]} 20... Kh8 {[%clk
0:00:15.4]} 21. Be6 {[%clk 0:02:20.7]} 1-0

[Event "GrandPrix_29.05"]
[Site "Chess.com"]
[Date "2020.05.29"]
[Round "7"]
[White "Malysch"]
[Black "OK97"]
[Result "0-1"]
[WhiteElo "2327"]
[BlackElo "2555"]
[TimeControl "600+2"]
[EndTime "12:28:53 PDT"]
[Termination "OK97 won by resignation"]

1. d4 {[%clk 0:10:01.9]} 1... Nf6 {[%clk 0:09:58.8]} 2. c4 {[%clk 0:10:01.6]}
2... e6 {[%clk 0:09:59.1]} 3. g3 {[%clk 0:10:01.8]} 3... d5 {[%clk 0:09:59.5]}
4. Bg2 {[%clk 0:10:01.8]} 4... dxc4 {[%clk 0:10:00.7]} 5. Nf3 {[%clk 0:10:02.7]}
5... a6 {[%clk 0:10:01.8]} 6. Ne5 {[%clk 0:10:02.7]} 6... Bb4+ {[%clk 0:09:49]}
7. Nc3 {[%clk 0:10:02.3]} 7... Nd5 {[%clk 0:09:28]} 8. Bd2 {[%clk 0:10:02.7]}
8... Nb6 {[%clk 0:09:17.6]} 9. a3 {[%clk 0:08:42.7]} 9... Be7 {[%clk 0:08:41.2]}
10. Nf3 {[%clk 0:08:18.9]} 10... Nc6 {[%clk 0:08:30.7]} 11. e3 {[%clk
0:08:19.2]} 11... O-O {[%clk 0:08:26.8]} 12. O-O {[%clk 0:08:19.6]} 12... Na5
{[%clk 0:08:18.5]} 13. Qe2 {[%clk 0:08:18.6]} 13... Nb3 {[%clk 0:08:08.1]} 14.
Rad1 {[%clk 0:08:18.5]} 14... c5 {[%clk 0:07:24.6]} 15. dxc5 {[%clk 0:08:02.7]}
15... Nxc5 {[%clk 0:07:17.6]} 16. Ne5 {[%clk 0:08:01.5]} 16... Nd3 {[%clk
0:06:49.7]} 17. Bc1 {[%clk 0:07:45.8]} 17... Nxc1 {[%clk 0:06:48.5]} 18. Rxc1
{[%clk 0:07:44]} 18... Qc7 {[%clk 0:06:45.8]} 19. f4 {[%clk 0:07:01.1]} 19... f6
{[%clk 0:06:28.4]} 20. Nf3 {[%clk 0:06:57]} 20... Bd7 {[%clk 0:05:19.5]} 21. Ne4
{[%clk 0:06:31.6]} 21... Bc6 {[%clk 0:04:49.6]} 22. Nd4 {[%clk 0:06:29.8]} 22...
Bd7 {[%clk 0:04:08.7]} 23. Nd2 {[%clk 0:04:45.3]} 23... e5 {[%clk 0:04:08.3]}
24. N4f3 {[%clk 0:03:44.6]} 24... Rac8 {[%clk 0:03:47.6]} 25. Rfd1 {[%clk
0:03:19.2]} 25... Rfd8 {[%clk 0:03:16.3]} 26. Nxc4 {[%clk 0:02:52.2]} 26... Nxc4
{[%clk 0:03:16.5]} 27. Nxe5 {[%clk 0:02:53.1]} 27... fxe5 {[%clk 0:03:07.9]} 28.
Rxc4 {[%clk 0:02:49.3]} 28... Bc6 {[%clk 0:02:51.3]} 29. Rdc1 {[%clk 0:02:20.1]}
29... Qd6 {[%clk 0:02:42.2]} 30. Qg4 {[%clk 0:02:11.1]} 30... exf4 {[%clk
0:02:22.2]} 31. exf4 {[%clk 0:02:02.1]} 31... Bf6 {[%clk 0:02:20.5]} 32. Bxc6
{[%clk 0:01:36.4]} 32... Rxc6 {[%clk 0:02:11.5]} 33. Rxc6 {[%clk 0:01:35.1]}
33... bxc6 {[%clk 0:02:12.3]} 34. Qf3 {[%clk 0:01:34.5]} 34... Qd5 {[%clk
0:02:00.3]} 0-1